fUST/lending_fUST_20260210
["ID","MTS","AMOUNT","RATE_DAILY","PERIOD"]
[404943969,1770708647237,-380.06017316,0.00038892,2]
[404943970,1770708647247,-380.06017316,0.000389,2]
[404943971,1770708647256,-2537.9264066,0.00038909,2]
[404943972,1770708647266,-286.605883,0.00038983,120]
[404943973,1770708647376,-151.0,0.00038983,120]
[404943974,1770708647387,-151.0,0.00038983,120]
[404943975,1770708647397,-151.0,0.00038983,120]
[404943976,1770708647406,-151.0,0.00038983,120]
[404943977,1770708647416,-196.035675,0.00038983,120]
[404943978,1770708647425,-151.0,0.00038983,120]
[404943979,1770708647435,-151.0,0.00038983,120]
[404943980,1770708647444,-151.0,0.00038983,120]
[404943981,1770708647453,-151.0,0.00038983,120]
[404943982,1770708647463,-272.03529,0.00038983,120]
[404943983,1770708647473,-500.0,0.00038983,15]
[404943984,1770708647483,-500.0,0.00038983,15]
[404943985,1770708647494,-500.0,0.00038983,15]
[404943986,1770708647507,-500.0,0.00038983,15]
[404943987,1770708647517,-500.0,0.00038983,15]
[404943988,1770708647529,-527.82173076,0.00038983,15]
[404943989,1770708647540,-500.0,0.00038983,15]
[404943990,1770708647550,-500.0,0.00038983,15]
[404943991,1770708647559,-500.0,0.00038983,15]
[404943992,1770708647569,-500.0,0.00038983,15]
[404943993,1770708647579,-389.88861779,0.00038983,15]
[404943994,1770708647588,-500.0,0.00038983,7]
[404943995,1770708647597,-275.26500043,0.00038983,7]
[404943996,1770708647606,-500.0,0.00038983,7]
[404943997,1770708647616,-500.0,0.00038983,7]
[404943998,1770708647626,-500.0,0.00038983,7]
[404943999,1770708647635,-151.0,0.00038984,120]
[404944000,1770708647644,-153.734209,0.00038984,120]
[404944001,1770708647654,-151.0,0.00038984,120]
[404944002,1770708647663,-151.0,0.00038984,120]
[404944003,1770708647672,-151.0,0.00038984,120]
[404944004,1770708647682,-151.0,0.00038984,120]
[404944005,1770708647691,-151.0,0.00038984,120]
[404944006,1770708647701,-151.0,0.00038984,120]
[404944007,1770708647711,-151.0,0.00038984,120]
[404944008,1770708647721,-151.0,0.00038984,120]
[404944009,1770708647730,-151.0,0.00038984,120]
[404944010,1770708647739,-151.0,0.00038984,120]
[404944011,1770708647750,-151.0,0.00038984,120]
[404944012,1770708647759,-151.0,0.00038984,120]
[404944013,1770708647768,-151.0,0.00038984,120]
[404944014,1770708647778,-202.953952,0.00038984,120]
[404944015,1770708647788,-225.199655,0.00038984,120]
[404944016,1770708647797,-225.199655,0.00038984,120]
[404944017,1770708647807,-225.199655,0.00038984,120]
[404944018,1770708647816,-225.199655,0.00038984,120]
[404944019,1770708647825,-225.199655,0.00038984,120]
[404944020,1770708647835,-225.199655,0.00038984,120]
[404944021,1770708647844,-225.199655,0.00038984,120]
[404944022,1770708647854,-225.199655,0.00038984,120]
[404944023,1770708647863,-225.199655,0.00038984,120]
[404944024,1770708647872,-225.199655,0.00038984,120]
[404944025,1770708647882,-225.199655,0.00038984,120]
[404944026,1770708647892,-225.199655,0.00038984,120]
[404944027,1770708647902,-225.199655,0.00038984,120]
[404944028,1770708647912,-225.199655,0.00038984,120]
[404944029,1770708647922,-225.199655,0.00038984,120]
[404944030,1770708647932,-225.199655,0.00038984,120]
[404944031,1770708647942,-225.199655,0.00038984,120]
[404944032,1770708647953,-225.199655,0.00038984,120]
[404944033,1770708647967,-225.199655,0.00038984,120]
[404944034,1770708647978,-225.199664,0.00038984,120]
[404944035,1770708647989,-151.0,0.00038984,120]
[404944036,1770708648000,-191.719549,0.00038984,120]
[404944037,1770708648012,-151.0,0.00038985,120]
[404944038,1770708648023,-151.0,0.00038985,120]
[404944039,1770708648034,-156.295883,0.00038985,120]
[404944040,1770708648045,-152.928979,0.00038985,7]
[404944041,1770708648055,-152.928979,0.00038985,7]
[404944042,1770708648065,-152.928979,0.00038985,7]
[404944043,1770708648075,-152.928979,0.00038985,7]
[404944044,1770708648086,-152.928979,0.00038985,7]
[404944045,1770708648096,-152.928979,0.00038985,7]
[404944046,1770708648106,-152.928979,0.00038985,7]
[404944047,1770708648116,-152.928979,0.00038985,7]
[404944048,1770708648126,-152.928979,0.00038985,7]
[404944049,1770708648135,-152.928979,0.00038985,7]
[404944050,1770708648145,-152.928979,0.00038985,7]
[404944051,1770708648156,-152.928979,0.00038985,7]
[404944052,1770708648166,-152.928979,0.00038985,7]
[404944053,1770708648176,-152.928979,0.00038985,7]
[404944054,1770708648186,-152.928979,0.00038985,7]
[404944055,1770708648196,-152.928979,0.00038985,7]
[404944056,1770708648208,-152.928979,0.00038985,7]
[404944057,1770708648219,-152.928979,0.00038985,7]
[404944058,1770708648229,-152.928979,0.00038985,7]
[404944059,1770708648239,-152.928976,0.00038985,7]
[404944060,1770708648249,-151.0,0.00038985,120]
[404944061,1770708648259,-151.0,0.00038985,120]
[404944062,1770708648269,-151.0,0.00038985,120]
[404944063,1770708648279,-151.0,0.00038985,120]
[404944064,1770708648289,-222.113481,0.00038985,120]
[404944065,1770708648299,-161.378337,0.00038985,120]
[404944066,1770708648309,-151.0,0.00038986,120]
[404944067,1770708648318,-151.0,0.00038986,120]
[404944068,1770708648328,-151.0,0.00038986,120]
[404944069,1770708648338,-151.0,0.00038986,120]
[404944070,1770708648347,-151.0,0.00038986,120]
[404944071,1770708648357,-151.0,0.00038986,120]
[404944072,1770708648367,-179.075102,0.00038986,120]
[404944073,1770708648377,-151.0,0.00038986,120]
[404944074,1770708648387,-151.0,0.00038986,120]
[404944075,1770708648397,-151.0,0.00038986,120]
[404944076,1770708648406,-151.0,0.00038986,120]
[404944077,1770708648416,-151.0,0.00038986,120]
[404944078,1770708648425,-151.0,0.00038986,120]
[404944079,1770708648435,-151.0,0.00038986,120]
[404944080,1770708648444,-151.0,0.00038986,120]
[404944081,1770708648454,-151.0,0.00038986,120]
[404944082,1770708648466,-151.0,0.00038986,120]
[404944083,1770708648475,-151.0,0.00038986,120]
[404944084,1770708648485,-151.0,0.00038986,120]
[404944085,1770708648495,-151.0,0.00038986,120]
[404944086,1770708648508,-151.0,0.00038986,120]
[404944087,1770708648518,-151.0,0.00038986,120]
[404944088,1770708648528,-151.0,0.00038986,120]
[404944089,1770708648539,-151.0,0.00038986,120]
[404944090,1770708648549,-151.0,0.00038986,120]
[404944091,1770708648558,-151.0,0.00038986,120]
[404944092,1770708648568,-151.0,0.00038986,120]
[404944093,1770708648580,-151.0,0.00038986,120]
[404944094,1770708648591,-151.0,0.00038986,120]
[404944095,1770708648601,-151.0,0.00038986,120]
[404944096,1770708648611,-151.0,0.00038986,120]
[404944097,1770708648620,-151.0,0.00038986,120]
[404944098,1770708648630,-151.0,0.00038986,120]
[404944099,1770708648639,-151.0,0.00038986,120]
[404944100,1770708648649,-151.0,0.00038986,120]
[404944101,1770708648658,-297.847649,0.00038986,120]
[404944102,1770708648667,-151.0,0.00038986,120]
[404944103,1770708648677,-151.0,0.00038986,120]
[404944104,1770708648686,-151.0,0.00038986,120]
[404944105,1770708648696,-151.0,0.00038986,120]
[404944106,1770708648707,-151.0,0.00038986,120]
[404944107,1770708648717,-151.0,0.00038986,120]
[404944108,1770708648726,-151.0,0.00038986,120]
[404944109,1770708648737,-151.0,0.00038986,120]
[404944110,1770708648747,-156.534113,0.00038986,120]
[404944111,1770708648757,-175.509488,0.00038986,120]
[404944112,1770708648767,-43.40309738,0.00038986,10]
[404944113,1770708648841,-107.59690262,0.00038986,10]
[404944114,1770708648850,-151.0,0.00038986,10]
[404944115,1770708648860,-151.0,0.00038986,120]
[404944116,1770708648870,-151.0,0.00038986,120]
[404944117,1770708648879,-151.0,0.00038986,120]
[404944118,1770708648888,-151.0,0.00038986,120]
[404944119,1770708648897,-151.0,0.00038986,120]
[404944120,1770708648907,-199.886017,0.00038986,120]
[404944121,1770708648916,-151.0,0.00038986,120]
[404944122,1770708648925,-151.0,0.00038986,120]
[404944123,1770708648934,-158.345333,0.00038986,120]
[404944124,1770708648944,-151.0,0.00038986,120]
[404944125,1770708648954,-159.957575,0.00038986,120]
[404944126,1770708648964,-233.14985016,0.00038986,120]
[404944127,1770708648973,-151.0,0.00038986,120]
[404944128,1770708648983,-151.0,0.00038986,120]
[404944129,1770708648992,-151.0,0.00038986,120]
[404944130,1770708649002,-151.0,0.00038986,120]
[404944131,1770708649011,-151.0,0.00038986,120]
[404944132,1770708649022,-170.3989588,0.00038986,120]
[404944133,1770708681467,500.0,0.00013699,2]
[404944134,1770708681496,772.185194,0.00014247,2]
[404944135,1770708723266,500.0,0.00013699,2]
[404944136,1770708723322,403.40117922,0.00014247,2]
[404944137,1770708728315,500.0,0.00013699,2]
[404944138,1770708738640,-388.66220874,0.00024703,2]
[404944139,1770708738660,-388.66220874,0.00024953,2]
[404944140,1770708738671,-867.03381678,0.00024953,2]
[404944149,1770708908605,504.18379709,0.00013273,2]
[404944150,1770708910669,500.0,0.00013273,2]
[404944151,1770708910708,1000.0,0.00013821,2]
[404944152,1770708910791,1500.0,0.00014368,2]
[404944153,1770708910856,2000.0,0.00014916,2]
[404944154,1770708910885,1500.0,0.00015464,2]
[404944156,1770708931144,500.0,0.00013699,2]
[404944157,1770708931215,1000.0,0.00014247,2]
[404944164,1770708968464,500.0,0.00013273,2]
[404944165,1770708968505,813.60155111,0.00013821,2]
[404944166,1770708971021,500.0,0.00013699,2]
[404944167,1770708971083,500.0,0.00014247,2]
[404944168,1770708972939,500.62351729,0.00013699,2]
[404944169,1770709005008,500.0,0.00013273,2]
[404944170,1770709005059,1000.0,0.00013821,2]
[404944171,1770709005121,1500.0,0.00014368,2]
[404944172,1770709005195,1014.43292101,0.00014916,2]
[404944173,1770709019807,-3744.30397448,0.00024703,2]
[404944174,1770709020077,-150.0,0.00024954,2]
[404944175,1770709020100,-27.0,0.00026954,2]
[404944176,1770709020389,-150.0,0.00026954,2]
[404944177,1770709020411,-54.0,0.00028954,2]
[404944178,1770709020494,-150.0,0.00028954,2]
[404944179,1770709020516,-81.0,0.00030954,2]
[404944180,1770709020540,-169.06785003,0.00037,90]
[404944181,1770709020661,-150.0,0.00030954,2]
[404944182,1770709020681,-68.1614739,0.00031791,2]
[404944183,1770709021004,-150.0,0.00031791,2]
[404944184,1770709021223,-163.51867516,0.00037596,15]
[404944185,1770709021253,-265.54317976,0.00037596,15]
[404944186,1770709021276,-252.80722227,0.00037596,7]
[404944187,1770709021297,-604.17863375,0.00037596,15]
[404944188,1770709021318,-180.40344258,0.00037596,7]
[404944189,1770709021348,-336.42463675,0.00037596,15]
[404944190,1770709024015,500.0,0.00013699,2]
[404944191,1770709024039,79.93346192,0.00014247,2]
[404944192,1770709024061,920.06653808,0.00014247,2]
[404944199,1770709105120,151.0,0.00037596,31]
[404944200,1770709151008,151.0,0.00037596,31]
[404944202,1770709152684,151.0,0.00037596,31]
[404944204,1770709154652,151.0,0.00037596,31]
[404944207,1770709178496,157.980567,0.00037595,31]
[404944208,1770709204646,500.0,0.00013273,2]
[404944209,1770709204701,286.85768491,0.00013821,2]
[404944212,1770709280298,222.87765879,0.00014795,2]
[404944213,1770709280366,1000.0,0.00014247,2]
[404944214,1770709280414,500.0,0.00013699,2]
[404944215,1770709282334,221.1882638,0.00013699,2]
[404944216,1770709284405,500.0,0.00013699,2]
[404944217,1770709284459,1008.02709033,0.00014247,2]
[404944224,1770709306481,500.0,0.00013273,2]
[404944225,1770709306529,823.60394197,0.00013821,2]
[404944231,1770709412048,397.59246724,0.00037588,7]
[404944232,1770709425931,271.25992167,0.000375,15]
[404944233,1770709425954,397.59246724,0.000375,15]
[404944234,1770709442823,106.96956323,0.0003526,7]
[404944235,1770709442845,978.21979444,0.0003526,7]
[404944236,1770709443964,593.29751409,0.00014247,2]
[404944237,1770709444033,500.0,0.00013699,2]
[404944238,1770709457757,106.96956323,0.0003526,7]
[404944249,1770709503137,500.0,0.00013699,2]
[404944250,1770709503199,545.40054681,0.00014247,2]
[404944256,1770709590582,500.0,0.00013699,2]
[404944257,1770709590610,500.0,0.00013273,2]
[404944258,1770709590636,1004.32634132,0.00014247,2]
[404944259,1770709590662,457.44277415,0.00013821,2]
[404944266,1770709666727,765.71,0.0003,120]
[404944267,1770709684289,502.58598766,0.00013273,2]
[404944293,1770709832536,-742.18218896,0.00028,7]
[404944295,1770709832546,-272.76284932,0.00030137,120]
[404944469,1770709838900,-727.23715068,0.00030137,120]
[404944470,1770709838909,-1000.0,0.00030137,120]
[404944471,1770709838918,-500.0,0.00035,30]
[404944472,1770709838929,-150.0,0.00035,120]
[404944473,1770709838939,-500.0,0.00035074,2]
[404944474,1770709838949,-225.83595467,0.00035192,2]
[404944527,1770709840921,-73.81214178,0.00035192,2]
[404944529,1770709840931,-340.9997715,0.00035602,2]
[404944531,1770709840941,-150.0,0.00036,120]
[404944533,1770709840950,-1644.3582342,0.00036002,2]
[404944535,1770709840961,-150.0,0.00037,120]
[404944537,1770709840971,-272.38806484,0.00037044,2]
[404944539,1770709840980,-729.93346192,0.0003722,2]
[404944541,1770709840990,-1296.36182837,0.0003722,2]
[404944543,1770709841001,-500.0,0.00037591,7]
[404944545,1770709841011,-151.0,0.00037592,31]
[404944547,1770709841020,-151.0,0.00037592,31]
[404944549,1770709841029,-151.0,0.00037592,31]
[404944551,1770709841038,-151.0,0.00037592,31]
[404944552,1770709841048,-500.0,0.00037595,2]
[404944553,1770709841058,-500.0,0.0003799,30]
[404944554,1770709841067,-500.0,0.0003799,30]
[404944555,1770709841077,-500.0,0.0003799,30]
[404944556,1770709841087,-500.0,0.0003799,30]
[404944557,1770709841097,-500.0,0.00038,20]
[404944558,1770709841106,-150.0,0.00038,120]
[404944559,1770709841115,-151.0,0.00038356,120]
[404944560,1770709841124,-151.0,0.00038356,120]
[404944561,1770709841134,-151.0,0.00038356,120]
[404944562,1770709841143,-151.0,0.00038356,120]
[404944563,1770709841153,-162.337583,0.00038356,120]
[404944564,1770709841162,-151.0,0.00038356,120]
[404944566,1770709841171,-170.36381,0.00038356,120]
[404944567,1770709841180,-151.0,0.00038356,120]
[404944569,1770709841189,-313.702696,0.00038356,120]
[404944571,1770709841199,-313.702696,0.00038356,120]
[404944573,1770709841208,-313.702696,0.00038356,120]
[404944575,1770709841217,-152.098353,0.00038356,120]
[404944577,1770709841227,-220.04045,0.00038356,120]
[404944579,1770709841236,-220.04045,0.00038356,120]
[404944581,1770709841245,-220.04045,0.00038356,120]
[404944583,1770709841257,-220.04045,0.00038356,120]
[404944585,1770709841266,-220.04045,0.00038356,120]
[404944587,1770709841275,-220.04045,0.00038356,120]
[404944589,1770709841284,-220.04045,0.00038356,120]
[404944591,1770709841293,-220.04045,0.00038356,120]
[404944593,1770709841301,-151.0,0.00038356,120]
[404944595,1770709841311,-151.0,0.00038356,120]
[404944597,1770709841321,-151.0,0.00038356,120]
[404944599,1770709841330,-151.0,0.00038356,120]
[404944601,1770709841339,-151.0,0.00038356,120]
[404944603,1770709841349,-259.964899,0.00038356,120]
[404944605,1770709841362,-275.268353,0.00038356,60]
[404944607,1770709841372,-275.268353,0.00038356,60]
[404944609,1770709841381,-275.268353,0.00038356,60]
[404944611,1770709841391,-275.268353,0.00038356,60]
[404944613,1770709841400,-275.268353,0.00038356,60]
[404944615,1770709841410,-275.268353,0.00038356,60]
[404944617,1770709841419,-275.268353,0.00038356,60]
[404944619,1770709841428,-275.268353,0.00038356,60]
[404944621,1770709841438,-275.268353,0.00038356,60]
[404944623,1770709841447,-275.268353,0.00038356,60]
[404944625,1770709841457,-275.268353,0.00038356,60]
[404944627,1770709841467,-275.268353,0.00038356,60]
[404944629,1770709841476,-275.268353,0.00038356,60]
[404944631,1770709841485,-275.268353,0.00038356,60]
[404944633,1770709841494,-275.268353,0.00038356,60]
[404944636,1770709841508,-275.268353,0.00038356,60]
[404944638,1770709841517,-151.0,0.00038356,120]
[404944640,1770709841526,-151.0,0.00038356,120]
[404944642,1770709841536,-151.0,0.00038356,120]
[404944644,1770709841545,-151.0,0.00038356,120]
[404944646,1770709841554,-151.0,0.00038356,120]
[404944648,1770709841563,-153.27346,0.00038356,120]
[404944650,1770709841572,-151.0,0.00038356,120]
[404944652,1770709841583,-151.72521,0.00038356,120]
[404944654,1770709841592,-151.0,0.00038356,120]
[404944656,1770709841601,-151.0,0.00038356,120]
[404944658,1770709841610,-106.05430314,0.00038356,120]
[404945197,1770709847048,-44.94569686,0.00038356,120]
[404945199,1770709847058,-151.0,0.00038356,120]
[404945201,1770709847068,-201.578378,0.00038356,120]
[404945203,1770709847078,-151.0,0.00038356,120]
[404945205,1770709847087,-151.0,0.00038356,120]
[404945207,1770709847099,-151.0,0.00038356,120]
[404945209,1770709847108,-151.0,0.00038356,120]
[404945211,1770709847117,-154.421941,0.00038356,120]
[404945213,1770709847127,-151.0,0.00038356,120]
[404945215,1770709847137,-151.0,0.00038356,120]
[404945217,1770709847146,-151.0,0.00038356,120]
[404945219,1770709847156,-151.0,0.00038356,120]
[404945221,1770709847165,-151.0,0.00038356,120]
[404945223,1770709847175,-151.0,0.00038356,120]
[404945225,1770709847184,-151.0,0.00038356,120]
[404945227,1770709847193,-151.0,0.00038356,120]
[404945229,1770709847203,-151.0,0.00038356,120]
[404945231,1770709847212,-151.0,0.00038356,120]
[404945233,1770709847221,-151.0,0.00038356,120]
[404945235,1770709847231,-151.0,0.00038356,120]
[404945237,1770709847240,-151.0,0.00038356,120]
[404945239,1770709847249,-151.0,0.00038356,120]
[404945241,1770709847259,-151.0,0.00038356,120]
[404945243,1770709847268,-160.780835,0.00038356,120]
[404945245,1770709847277,-151.0,0.00038356,120]
[404945247,1770709847286,-157.54332,0.00038356,120]
[404945249,1770709847295,-151.0,0.00038356,120]
[404945251,1770709847304,-151.0,0.00038356,120]
[404945253,1770709847313,-266.647292,0.00038356,120]
[404945264,1770709847404,-266.647292,0.00038356,120]
[404945265,1770709847419,-266.647292,0.00038356,120]
[404945267,1770709847428,-266.647292,0.00038356,120]
[404945268,1770709847437,-712.0,0.00038781,11]
[404945270,1770709847446,-151.0,0.00038781,120]
[404945271,1770709847456,-151.0,0.00038781,120]
[404945273,1770709847466,-151.0,0.00038781,120]
[404945274,1770709847476,-152.57360988,0.000388,2]
[404945276,1770709847485,-220.04045,0.00038849,120]
[404945277,1770709847495,-220.04045,0.00038849,120]
[404945279,1770709847503,-220.04045,0.00038849,120]
[404945280,1770709847513,-220.04045,0.00038849,120]
[404945282,1770709847523,-151.0,0.00038849,120]
[404945283,1770709847532,-217.665808,0.00038849,120]
[404945285,1770709847541,-275.268353,0.00038849,60]
[404945286,1770709847552,-275.268353,0.00038849,60]
[404945288,1770709847561,-275.268353,0.00038849,60]
[404945289,1770709847572,-275.268357,0.00038849,60]
[404945291,1770709847581,-151.0,0.00038849,120]
[404945292,1770709847591,-266.647292,0.00038849,120]
[404945294,1770709847604,-266.647292,0.00038849,120]
[404945296,1770709847614,-633.0,0.00038849,2]
[404945297,1770709847623,-2163.0,0.00038849,2]
[404945299,1770709847633,-73.49982549,0.00038849,2]
[404945787,1770709900198,500.0,0.00023,2]
[404945794,1770709969316,500.0,0.00023,2]
[404945798,1770710062757,215.85310535,0.00025205,14]
[404945800,1770710163816,185.46574592,0.00013273,2]
[404945813,1770710184594,500.0,0.00013273,2]
[404945814,1770710184646,577.27379565,0.00013821,2]
[404945821,1770710404287,185.46574592,0.00013273,2]
[404945917,1770711031641,-317.32,0.00031655,29]
[404945919,1770711031650,-1931.62186638,0.00032863,2]
[404945922,1770711031684,-635.8855634,0.00032863,2]
[404945923,1770711031694,-1200.0,0.00033193,3]
[404945925,1770711031703,-400.0,0.00033194,3]
[404945927,1770711031713,-300.0,0.00033194,3]
[404945928,1770711031723,-400.0,0.00033194,2]
[404945930,1770711031732,-300.0,0.00033194,3]
[404945931,1770711031742,-1028.19194841,0.00033195,2]
[404946039,1770711037771,-5000.0,0.00032863,2]
[404946040,1770711037782,-300.0,0.00033529,3]
[404946041,1770711037791,-393.39616044,0.00035192,2]
[404946042,1770711037801,-908.08788648,0.00035192,2]
[404946043,1770711037810,-208.0,0.00035658,3]
[404946044,1770711037820,-200.0,0.00035658,2]
[404946045,1770711037830,-2965.48705862,0.00036655,2]
[404946046,1770711037839,-742.18218896,0.00036991,7]
[404946047,1770711037848,-1376.0,0.00036992,2]
[404946048,1770711037858,-2163.0,0.00036992,2]
[404946049,1770711037867,-630.0,0.00036992,2]
[404946050,1770711037877,-422.0,0.00036992,2]
[404946051,1770711037887,-721.0,0.00036992,2]
[404946052,1770711037896,-1307.321548,0.00037944,2]
[404946053,1770711037905,-500.0,0.00038355,2]
[404946054,1770711037915,-151.0,0.00038356,120]
[404946055,1770711037924,-175.2,0.000384,2]
[404946056,1770711038046,-1460.2415569,0.00038643,2]
[404946057,1770711038061,-76.50017451,0.00038849,2]
[404946058,1770711038071,-150.0,0.00038849,2]
[404946059,1770711038082,-150.0,0.00038849,2]
[404946060,1770711038091,-150.50429,0.000389,2]
[404946061,1770711038100,-151.0,0.00038967,2]
[404946062,1770711038110,-151.0,0.00038967,2]
[404946063,1770711038119,-151.0,0.00038967,2]
[404946064,1770711038129,-151.0,0.00038967,2]
[404946065,1770711038139,-151.0,0.00038967,2]
[404946066,1770711038148,-151.0,0.00038967,2]
[404946067,1770711038157,-151.0,0.00038967,2]
[404946068,1770711038167,-151.0,0.00038967,2]
[404946069,1770711038177,-151.0,0.00038967,2]
[404946070,1770711038186,-151.0,0.00038967,2]
[404946071,1770711038195,-151.0,0.00038967,2]
[404946072,1770711038205,-151.0,0.00038967,2]
[404946073,1770711038215,-184.58568436,0.00038967,2]
[404946074,1770711038224,-250.0,0.00038967,2]
[404946075,1770711038234,-264.20092766,0.00038967,2]
[404946076,1770711038244,-354.22,0.0003898,10]
[404946077,1770711038255,-157.4320343,0.0003898,3]
[404946078,1770711038264,-500.0,0.00038989,2]
[404946079,1770711038274,-500.0,0.00038989,2]
[404946080,1770711038288,-382.3623531,0.00038989,15]
[404946081,1770711038298,-7668.76096318,0.0003899,2]
[404946654,1770711045991,-263.92,0.00036992,2]
[404946655,1770711046014,-7088.36984105,0.00036992,2]
[404946656,1770711046026,-14720.74026642,0.00036992,2]
[404946657,1770711046035,-540.62160177,0.0003899,10]
[404946662,1770711046436,-65.92839823,0.0003899,10]
[404946663,1770711046446,-3393.54588053,0.0003899,2]
[404946692,1770711135362,459.83648315,0.00013273,2]
[404946713,1770711315930,500.0,0.00013273,2]
[404946714,1770711315981,1000.0,0.00013821,2]
[404946715,1770711316030,1000.0,0.00014368,2]
[404946716,1770711317096,500.0,0.00013273,2]
[404946717,1770711329935,500.0,0.00013699,2]
[404946718,1770711329988,1000.0,0.00014247,2]
[404946719,1770711330040,1500.0,0.00014795,2]
[404946720,1770711330097,710.51286641,0.00015342,2]
[404946766,1770711668858,500.0,0.00013273,2]
[404946767,1770711668906,500.0,0.00013273,2]
[404946768,1770711669978,500.0,0.00013699,2]
[404946769,1770711670042,567.33320417,0.00014247,2]
[404946772,1770711690648,6301.75,0.00030137,120]
[404946776,1770711738584,-300.00000006,0.00024953,2]
[404946780,1770711846006,-5000.0,0.00024456,2]
[404946795,1770711965609,-1631.62186632,0.00024211,2]
[404946796,1770711965637,-170.13659962,0.00024456,2]
[404946797,1770711965666,-3198.24153406,0.00024703,2]
[404946798,1770711986309,503.7408561,0.00013273,2]
[404946809,1770712117831,10000.01,0.0001,2]
[404946810,1770712121109,511.17019672,0.000135,2]
[404946811,1770712122657,167.67504153,0.0002,2]
[404946844,1770712231895,-178.04162156,0.00024651,2]
[404946845,1770712231907,-4821.95837844,0.00024651,2]
[404946846,1770712231916,-221.03,0.000249,2]
[404946847,1770712231926,-5000.0,0.00025,2]
[404946848,1770712231935,-150.0,0.0002739,2]
[404946850,1770712231944,-15830.45623997,0.00027499,2]
[404946852,1770712231954,-10492.030357,0.00027499,2]
[404946854,1770712231964,-500.0,0.00027499,2]
[404946856,1770712231974,-500.0,0.00027499,2]
[404946858,1770712231983,-500.0,0.00027499,2]
[404946859,1770712231992,-500.0,0.00027499,2]
[404946861,1770712232001,-199.90791856,0.00027499,2]
[404946863,1770712232011,-500.0,0.00027499,2]
[404946865,1770712232020,-500.0,0.00027499,2]
[404946867,1770712232030,-500.0,0.00027499,2]
[404946869,1770712232039,-500.0,0.00027499,2]
[404946871,1770712232049,-500.0,0.00027499,2]
[404946873,1770712232058,-500.0,0.00027499,2]
[404946875,1770712232067,-500.0,0.00027499,2]
[404946877,1770712232077,-500.0,0.00027499,2]
[404946879,1770712232085,-500.0,0.00027499,2]
[404946881,1770712232094,-500.0,0.00027499,2]
[404946883,1770712232104,-500.0,0.00027499,2]
[404946885,1770712232113,-500.0,0.00027499,2]
[404946887,1770712232121,-214.43172444,0.00027499,2]
[404947128,1770712237964,-285.56827556,0.00027499,2]
[404947129,1770712237974,-500.0,0.00027499,2]
[404947130,1770712237983,-500.0,0.00027499,2]
[404947131,1770712237993,-500.0,0.00027499,2]
[404947132,1770712238002,-500.0,0.00027499,2]
[404947133,1770712238012,-500.0,0.00027499,2]
[404947134,1770712238022,-500.0,0.00027499,2]
[404947135,1770712238031,-500.0,0.00027499,2]
[404947136,1770712238042,-500.0,0.00027499,2]
[404947137,1770712238052,-500.0,0.00027499,2]
[404947138,1770712238062,-500.0,0.00027499,2]
[404947139,1770712238075,-500.0,0.00027499,2]
[404947140,1770712238085,-500.0,0.00027499,2]